[Event "AUT Bundesliga 2024-25"]
[Site "Austria"]
[Date "2025.04.04"]
[Round "9.13"]
[White "Dragnev, Valentin"]
[Black "Nisipeanu, Liviu-Dieter"]
[Result "1/2-1/2"]
[Annotator "TA"]
[ECO "C56"]
[WhiteElo "2538"]
[BlackElo "2579"]
[PlyCount "115"]
[EventDate "2024.08.28"]
[EventType "team-tourn"]
[EventCountry "AUT"]
[SourceTitle "playchess.com"]
[Source "ChessBase"]
[SourceQuality "1"]
[TimeControl "40/5400+30:1800+30"]

{[%evp 9,115,10,11,-1,3,-15,-18,-18,32,28,35,-20,-21,-2,6,-36,64,78,62,62,87,33,39,6,31,36,33,48,41,47,91,89,112,127,136,107,94,80,142,141,127,126,173,152,168,162,174,164,348,69,68,68,84,81,81,85,93,93,81,70,112,125,115,104,203,203,203,200,173,186,178,162,167,177,170,142,135,139,143,97,142,147,132,122,133,0,75,63,16,16,16,16,57,-8,0,-8,20,0,0,0,0,0,0,0,0,0,0,0]} 1. e4 {[%emt 0:00:03]} e5 {[%emt 0:00:10]} 2. Nf3 {[%emt 0:00:08]} Nc6 {[%emt 0:00:06]} 3. Bc4 {[%emt 0:00:09]} d6 {[%emt 0:00:08]} 4. d4 {[%emt 0:00:23]} Nf6 {[%emt 0:00:07]} 5. Nc3 {[%emt 0:00:52]} Bg4 {[%emt 0:01:07]} 6. d5 {[%emt 0:00:44] [#] C56: Two Knights: 4 d4 exd4 5 0-0 Nxe4.} Nd4 {[%emt 0:05:54]} 7. Qd3 {[%emt 0:03:07]} (7. h3 Bxf3) 7... Bxf3 {[%emt 0:22:03]} 8. gxf3 {[%emt 0:00:03]} c6 $146 {[%emt 0:00:06] Prevents Nb5} (8... a6 $11) (8... Nd7 9. Be3 Nxf3+ 10. Kd1 Qf6 11. Ne2 a6 12. b4 Be7 13. c3 h5 14. h3 h4 {0-1 Sanchez Alfaro,P-Galarreta Garcia,J Alfaro op 16th 2010 (4)}) 9. dxc6 $14 {[%emt 0:33:59]} bxc6 {[%emt 0:00:09]} 10. Ne2 {[%emt 0:00:44]} (10. Bd2 $14) 10... d5 $11 {[%emt 0:21:12]} 11. exd5 {[%emt 0:07:45]} cxd5 {[%emt 0:00:11]} 12. Bb3 {[%emt 0:00:11]} Bc5 {[%emt 0:11:20]} (12... Nxb3 $15 13. axb3 Bc5) 13. Nxd4 $14 {[%emt 0:01:30]} Bxd4 {[%emt 0:00:04]} 14. c3 {[%emt 0:01:11]} (14. Rg1 {seems wilder.} O-O 15. c3 Bc5 16. Bh6) 14... Bb6 {[%emt 0:00:05]} 15. Ba4+ {[%emt 0:01:06]} (15. Rg1 $16) 15... Kf8 {[%emt 0:00:10]} 16. Bg5 {[%emt 0:08:28]} h6 {[%emt 0:01:17]} 17. Bh4 {[%emt 0:00:38]} g5 {[%emt 0:14:02]} 18. Bg3 {[%emt 0:00:12]} e4 {[%emt 0:00:04]} 19. Qc2 {[%emt 0:01:20]} d4 {[%emt 0:01:52]} 20. O-O-O {[%emt 0:01:12]} Qd5 {[%emt 0:00:28]} (20... exf3 $2 21. Qf5 Kg7 22. Be5 $18 (22. Qxf3 g4 $11)) 21. c4 {[%emt 0:08:50]} Qe6 {[%emt 0:05:19]} 22. fxe4 {[%emt 0:06:56]} Rc8 {[%emt 0:00:21]} 23. Bb3 {[%emt 0:03:07] This pair of bishops is nice.} Kg7 {[%emt 0:01:00]} (23... Qxe4 $142 24. Qxe4 (24. Rhe1 Qxc2+ 25. Bxc2 Rxc4 $11) 24... Nxe4) 24. Rhe1 {[%emt 0:01:27]} Rhd8 {[%emt 0:01:45]} 25. Kb1 {[%emt 0:01:09]} Nh5 {[%emt 0:00:35] [#]} (25... Nd7 $16) 26. f4 $1 $18 {[%emt 0:06:01][%mdl 512]} Nxf4 {[%emt 0:07:13]} (26... d3 27. Rxd3) 27. Bxf4 {[%emt 0:03:02]} gxf4 {[%emt 0:00:05]} 28. c5 $1 {[%emt 0:00:13]} Qh3 {[%emt 0:00:13]} (28... Rxc5 {was necessary.} 29. Bxe6 Rxc2) 29. Qc4 $2 {[%emt 0:06:25]} (29. Qd2 $18 {Hoping for Rg1+.} Bc7 30. e5 Qf5+ 31. Bc2) 29... Qh5 $14 {[%emt 0:00:32]} 30. Rg1+ {[%emt 0:01:00] White attacks} (30. Rxd4 Rxc5 31. Qd3 (31. Rg1+ $2 Kh7 $19) 31... Rc1+ 32. Rxc1 Rxd4 $17 (32... Bxd4 33. Rc7 $11)) 30... Kh7 {[%emt 0:01:25][%cal Bg7h7,Bh7h8,Bh8g8][%mdl 32]} 31. Qd3 {[%emt 0:02:19]} (31. Qxf7+ Qxf7 32. Bxf7 Rxc5 $14) (31. Rxd4 $2 Rxc5 32. Qf1 Rxd4 $19) 31... Rxc5 {[%emt 0:00:23]} 32. e5+ $1 {[%emt 0:00:05]} Kh8 {[%emt 0:00:07]} 33. Bc2 {[%emt 0:00:36]} Rxc2 {[%emt 0:00:12]} 34. Kxc2 $40 {[%emt 0:00:13][%mdl 128] White attacks.} Qxe5 {[%emt 0:00:32]} 35. Rde1 {[%emt 0:01:14] The board is on fire.} Qf6 {[%emt 0:00:27]} 36. Kb1 {[%emt 0:00:22]} Rg8 {[%emt 0:03:27]} (36... f3 $2 37. Ref1 $18) (36... Bc7 $16) 37. Rxg8+ $18 {[%emt 0:01:18]} Kxg8 {[%emt 0:00:11][%mdl 4096] Endgame KQR-KQB} 38. Rg1+ {[%emt 0:00:21]} Kf8 {[%emt 0:00:54]} 39. Qa3+ $1 {[%emt 0:00:59][%mdl 1024] White has strong compensation.} Ke8 {[%emt 0:00:06]} 40. Qa4+ {[%emt 0:00:32]} Ke7 {[%emt 0:01:19]} 41. Re1+ $1 {[%emt 0:01:23]} Kd6 {[%emt 0:00:18]} (41... Kf8 $2 42. Qe8+ Kg7 43. Rg1+ $18) 42. Qb4+ {[%emt 0:00:41]} Kd7 {[%emt 0:01:23]} 43. Qb5+ {[%emt 0:00:10]} Kd6 {[%emt 0:00:05]} 44. a4 $1 {[%emt 0:06:41] White has more active pieces.} Qg5 {[%emt 0:03:48]} 45. Qd3 {[%emt 0:05:04]} Qg6 {[%emt 0:02:37]} 46. Kc2 {[%emt 0:00:36]} (46. Re4 $2 Kd5 47. Ka1 Qxe4 $19) 46... Qg2+ {[%emt 0:01:04] [#]} 47. Kb1 {[%emt 0:03:41]} (47. Kc1 $142 $1) 47... Qg6 $1 $16 {[%emt 0:00:13] [#] Wards off Qf5} (47... Qxh2 $2 48. Qf5 Qh4 49. Qe5+ Kc6 50. Qe4+ Kc7 51. a5 $18 (51. Rf1 Qh5 $18)) 48. Qxg6+ {[%emt 0:10:22]} (48. Re4 $2 Kd5 49. Ka2 Qxe4 $19) 48... fxg6 {[%emt 0:00:05] KR-KB} 49. Kc2 {[%emt 0:00:04]} g5 {[%emt 0:02:09]} 50. Kd3 {[%emt 0:00:35]} f3 {[%emt 0:03:11]} 51. Re8 {[%emt 0:01:48]} ({White should try} 51. h3 $14) 51... g4 {[%emt 0:04:51] And now ...Bc7 would win. The position is equal.} 52. b4 {[%emt 0:01:05]} Kd7 {[%emt 0:02:17]} 53. Rh8 {[%emt 0:01:48]} Bc7 {[%emt 0:00:34]} 54. Rh7+ {[%emt 0:00:43]} (54. Rxh6 Bxh2 55. Rh4 (55. Rxh2 $2 g3 $19) 55... g3 56. Rxd4+ Ke6 $19) (54. Kxd4 $2 f2 55. Rf8 (55. Rxh6 $2 f1=Q $19) 55... Bxh2 56. Rf7+ (56. Rxf2 $2 Bg1 $19) 56... Ke6 57. Rxf2 Bg1 $19) 54... Kc8 {[%emt 0:00:10]} 55. Rh8+ {[%emt 0:01:58]} (55. Kxd4 $2 f2 (55... Bxh2 $2 56. Rh8+ Kd7 57. Ke3 $19) 56. Rh8+ (56. Rxh6 $2 f1=Q $19) 56... Kd7 $19) (55. Rxh6 $2 Bxh2 56. Rh8+ (56. Rxh2 $2 g3 $19) 56... Kd7 $19) 55... Kd7 {[%emt 0:01:34]} 56. Rh7+ {[%emt 0:01:12]} (56. Rxh6 $2 Bxh2 57. Rxh2 g3 58. Rh7+ Ke6 59. Rxa7 g2 $19) (56. Kxd4 f2 57. Rf8 (57. Rxh6 $2 f1=Q $19) 57... Bxh2 58. Rf7+ (58. Rxf2 $2 Bg1 $19) 58... Ke6 59. Rxf2 Bg1 $19) 56... Kc8 {[%emt 0:00:07]} 57. Rh8+ {[%emt 0:00:38]} (57. Kxd4 $2 f2 (57... Bxh2 $2 58. Ke3 $19) 58. Rh8+ (58. Rxh6 $2 f1=Q $19) 58... Kd7 $19) 57... Kd7 {[%emt 0:00:07]} 58. Rh7+ {[%emt 0:00:30] Black defended with fortune.   Weighted Error Value: White=0.18 (very precise) /Black=0.20 (precise)   Missed win:     	White=1     	---        Mistake:       	White=4     	Black=6      Inaccurate:     	White=2     	Black=5      OK:         	White=25    	Black=12     Best:        	White=3     	Black=9      Strong:       	White=3     	Black=1      Brilliant:      	---       	Black=1} (58. Rxh6 $2 Bxh2 59. Rh4 (59. Rxh2 $2 {too greedy.} g3 $19) 59... g3 60. Rxd4+ Ke6 $19) (58. Kxd4 $2 f2 59. Rf8 (59. Rxh6 $2 f1=Q $19) 59... Bxh2 $19) 1/2-1/2

[Event "AUT Bundesliga 2024-25"]
[Site "Austria"]
[Date "2025.04.04"]
[Round "9.14"]
[White "Michalik, Peter"]
[Black "Banusz, Tamas"]
[Result "1/2-1/2"]
[Annotator "TA"]
[ECO "C42"]
[WhiteElo "2563"]
[BlackElo "2592"]
[PlyCount "87"]
[EventDate "2024.08.28"]
[EventType "team-tourn"]
[EventCountry "AUT"]
[SourceTitle "playchess.com"]
[Source "ChessBase"]
[SourceQuality "1"]
[TimeControl "40/5400+30:1800+30"]

{[%evp 9,87,19,10,16,18,18,11,4,21,8,23,16,27,13,10,10,11,12,12,14,14,2,15,14,21,24,23,20,27,19,37,37,35,18,31,7,4,0,0,0,13,17,14,10,29,26,43,43,43,43,38,47,47,47,47,47,47,47,47,47,47,47,47,47,47,47,47,47,47,47,47,47,47,47,47,47,47,47,47,47]} 1. e4 {[%emt 1:31:00]} e5 {[%emt 0:01:10]} 2. Nf3 {[%emt 0:00:00]} Nf6 {[%emt 0:00:05]} 3. Nxe5 {[%emt 0:00:00]} d6 {[%emt 0:02:29]} 4. Nd3 {[%emt 0:00:00]} Nxe4 {[%emt 0:00:13]} 5. Qe2 {[%emt 0:00:00]} Qe7 $1 {[%emt 0:00:10]} 6. Nf4 {[%emt 0:00:00] C42: Petroff Defence: 3 Nxe5 and unusual White 3rd moves.} Nf6 {[%emt 0:01:36] Inhibits Nd5.} 7. d4 {[%emt 0:00:00]} Qxe2+ {[%emt 0:10:10]} 8. Bxe2 {[%emt 0:00:00] The position is equal.} Nc6 {[%emt 0:01:31]} 9. c3 {[%emt 0:00:00]} Bf5 {[%emt 0:02:51]} 10. h4 {[%emt 0:00:00]} h5 {[%emt 0:01:24]} 11. Nd2 {[%emt 0:00:00]} g6 {[%emt 0:01:04]} 12. Nf1 {[%emt 0:00:00]} Bh6 {[%emt 0:01:33]} 13. Ng3 {[%emt 0:00:00]} Bd7 {[%emt 0:01:10]} 14. f3 {[%emt 0:00:00]} Kf8 {[%emt 0:10:51]} 15. O-O $146 {[%emt 0:00:00]} (15. Kf2 Kg7 16. Bd3 a5 17. a4 Ne7 18. Re1 Rhe8 19. b3 Rad8 20. Ne4 Nxe4+ 21. Bxe4 {½-½ Klimczak,J (2258)-Landers,J (2136) WZ-ch sf12 email 2019}) 15... Ne7 {[%emt 0:05:04]} 16. Bd3 {[%emt 0:00:00]} Ned5 {[%emt 0:03:13]} 17. Nxd5 {[%emt 0:00:00]} Nxd5 {[%emt 0:00:11]} 18. Bxh6+ {[%emt 0:00:00]} Rxh6 {[%emt 0:00:08]} 19. Be4 {[%emt 0:00:00]} Bc6 {[%emt 0:03:36]} 20. c4 {[%emt 0:00:00]} Ne7 {[%emt 0:00:42]} 21. Bd3 {[%emt 0:00:00][%cal Be4d3,Bd3e2,Be2f3][%mdl 32]} Rh8 {[%emt 0:01:32]} 22. f4 {[%emt 0:00:00]} f5 {[%emt 0:00:30]} 23. b4 {[%emt 0:00:00][%cal Bb2b4,Bb4b5,Bb5b6][%mdl 32]} Kg7 {[%emt 0:02:32]} 24. a4 {[%emt 0:00:00]} a5 {[%emt 0:01:39]} 25. b5 {[%emt 0:00:00]} Bd7 {[%emt 0:00:05]} 26. Be2 {[%emt 0:00:00]} Rad8 {[%emt 0:04:39]} 27. Bf3 {[%emt 0:00:00]} Bc8 {[%emt 0:00:21]} 28. Rfe1 {[%emt 0:00:00] White is slightly better.} Rhe8 {[%emt 0:00:26]} 29. Nf1 {[%emt 0:00:00][%cal Bg3f1,Bf1d2,Bd2b3,Bb3c1,Bc1d3,Bd3e5][%mdl 32] Space Advantage White} Ng8 {[%emt 0:02:18] [#]} 30. b6 $1 {[%emt 0:00:00]} c6 {[%emt 0:03:51]} (30... Rxe1 31. Rxe1) 31. Nd2 {[%emt 0:00:00]} Bd7 {[%emt 0:00:24]} 32. Nb3 {[%emt 0:00:00] Threatens to win with Rxe8.} Rxe1+ {[%emt 0:02:49]} 33. Rxe1 {[%emt 0:00:00]} Ra8 {[%emt 0:00:03]} 34. c5 {[%emt 0:00:00]} d5 {[%emt 0:00:21]} 35. Nc1 {[%emt 0:00:00]} Nf6 {[%emt 0:02:39]} 36. Nd3 {[%emt 0:00:00]} ({Don't take} 36. Re7+ Kf8 37. Re3 Ng4 $16) 36... Ne4 {[%emt 0:01:48]} 37. Ne5 {[%emt 0:00:00]} Be6 {[%emt 0:00:19]} 38. Kf1 {[%emt 0:03:01]} Kf6 {[%emt 0:01:42]} 39. Ke2 {[%emt 0:01:19]} Nc3+ {[%emt 0:01:19]} 40. Kd3 {[%emt 0:00:17]} Ne4 {[%emt 0:00:06]} 41. Ke3 {[%emt 0:31:41]} Rd8 {[%emt 0:35:00]} 42. Bd1 {[%emt 0:03:55]} Ra8 {[%emt 0:01:03]} 43. Bc2 {[%emt 0:06:12]} Rd8 {[%emt 0:00:46]} 44. Rc1 {[%emt 0:00:00] Weighted Error Value: White=0.02 (flawless) /Black=0.03 (flawless)   OK:         	White=20    	Black=20} 1/2-1/2

[Event "AUT Bundesliga 2024-25"]
[Site "Austria"]
[Date "2025.04.04"]
[Round "9.15"]
[White "Blohberger, Felix"]
[Black "Vogel, Roven"]
[Result "1/2-1/2"]
[Annotator "TA"]
[ECO "E04"]
[WhiteElo "2511"]
[BlackElo "2557"]
[PlyCount "62"]
[EventDate "2024.08.28"]
[EventType "team-tourn"]
[EventCountry "AUT"]
[SourceTitle "playchess.com"]
[Source "ChessBase"]
[SourceQuality "1"]
[TimeControl "40/5400+30:1800+30"]

{[%evp 11,62,14,28,-17,16,0,0,0,0,-65,-66,-62,-55,-59,-51,-93,-97,-93,-99,-92,-96,-96,-96,-97,-100,-108,-98,-98,-100,-97,-73,-79,-61,-54,-53,-63,-60,-60,0,0,0,-6,0,-50,-50,-51,0,-3,0,-60,0,-16,0]} 1. d4 {[%emt 0:00:16]} Nf6 {[%emt 0:00:43]} 2. Nf3 {[%emt 0:00:44]} d5 {[%emt 0:00:09]} 3. c4 {[%emt 0:03:58]} e6 {[%emt 0:00:38]} 4. g3 {[%emt 0:02:02]} dxc4 {[%emt 0:00:11]} 5. Bg2 {[%emt 0:00:06]} a6 {[%emt 0:00:12]} 6. O-O {[%emt 0:00:15]} Nc6 {[%emt 0:00:07]} 7. Qd2 {[%emt 0:00:52] E04: Open Catalan: 5 Nf3.} Bd7 $5 {[%emt 0:01:12][%mdl 4] An interesting side line.} 8. Ne5 {[%emt 0:18:01]} Nxe5 {[%emt 0:00:50]} 9. dxe5 {[%emt 0:00:06]} Nd5 {[%emt 0:00:08]} 10. Rd1 $146 {[%emt 0:04:53]} (10. Nc3 $11) (10. Bxd5 exd5 11. Qxd5 Be6 12. Qf3 Qd5 13. Qxd5 Bxd5 14. Nc3 Bc6 15. Rd1 Rd8 16. Bg5 {½-½ Sumets,A (2547)-Mastrovasilis,D (2597) Rubinstein Memorial 58th 2022 (2)}) 10... Ba4 $15 {[%emt 0:05:25] [#] ...Bb4 would now be deadly.} 11. Rf1 {[%emt 0:09:13]} Bc5 $1 {[%emt 0:08:19] Repels Qd4} 12. Nc3 {[%emt 0:01:46]} Bc6 {[%emt 0:01:27]} 13. Rd1 {[%emt 0:07:32]} Nxc3 {[%emt 0:04:40]} 14. Bxc6+ {[%emt 0:00:31]} bxc6 {[%emt 0:00:07]} 15. Qxd8+ {[%emt 0:03:14]} Rxd8 {[%emt 0:00:02]} 16. Rxd8+ {[%emt 0:00:09]} Kxd8 {[%emt 0:00:10]} 17. bxc3 $17 {[%emt 0:00:02][%mdl 4096] Endgame KRB-KRB. Black is a pawn up.} Kc8 {[%emt 0:01:15]} 18. Bf4 {[%emt 0:05:18]} Rd8 {[%emt 0:00:46]} 19. a4 {[%emt 0:00:47]} Rd5 {[%emt 0:03:09][%cal Og7g5]} 20. h4 {[%emt 0:01:06]} Bb6 {[%emt 0:22:34]} 21. Kg2 {[%emt 0:05:00]} Ba5 {[%emt 0:00:05]} 22. Rc1 {[%emt 0:00:28]} Kd7 {[%emt 0:01:40]} 23. Kf3 {[%emt 0:00:51]} c5 {[%emt 0:00:18]} 24. h5 {[%emt 0:07:04]} h6 {[%emt 0:03:20]} (24... Kc6 $15) 25. g4 $11 {[%emt 0:02:26]} Kc6 {[%emt 0:00:07]} 26. Ke4 {[%emt 0:00:49]} Rd8 {[%emt 0:00:08]} 27. Rc2 {[%emt 0:03:27]} ({Better is} 27. f3 $11) 27... Rd1 $15 {[%emt 0:07:44]} 28. Bc1 {[%emt 0:00:25]} Rd8 {[%emt 0:00:03]} (28... Rh1 $15) 29. Be3 {[%emt 0:00:16]} (29. g5 $2 hxg5 30. Kf3 Rd5 31. Bxg5 Rxe5 $19) 29... Rd1 {[%emt 0:00:04]} (29... Rg8 $11) 30. Bc1 $1 {[%emt 0:00:04]} Rd8 {[%emt 0:00:02]} 31. Be3 {[%emt 0:00:04]} ({Not} 31. g5 $2 hxg5 32. Kf3 Rd5 33. Bxg5 Rxe5 $19) 31... Rd1 {[%emt 0:00:03] Weighted Error Value: White=0.12 (very precise) /Black=0.12 (very precise)   Mistake:       	White=2     	Black=3      Inaccurate:     	White=1     	Black=2      OK:         	White=12    	Black=8      Best:        	---       	Black=1      Strong:       	White=1     	Black=1} 1/2-1/2

[Event "AUT Bundesliga 2024-25"]
[Site "Austria"]
[Date "2025.04.04"]
[Round "9.16"]
[White "Votava, Jan"]
[Black "Peyrer, Konstantin"]
[Result "0-1"]
[Annotator "RC"]
[ECO "E11"]
[WhiteElo "2455"]
[BlackElo "2451"]
[PlyCount "88"]
[EventDate "2024.08.28"]
[EventType "team-tourn"]
[EventCountry "AUT"]
[SourceTitle "playchess.com"]
[Source "ChessBase"]
[SourceQuality "1"]
[TimeControl "40/5400+30:1800+30"]

1. d4 {[%emt 0:00:04]} Nf6 {[%emt 0:00:08]} 2. c4 {[%emt 0:00:08]} e6 {[%emt 0:00:05]} 3. Nf3 {[%emt 0:00:08]} d5 {[%emt 0:00:29]} 4. g3 {[%emt 0:00:09]} Bb4+ {[%emt 0:00:10]} 5. Bd2 {[%emt 0:00:11]} a5 {[%emt 0:00:06]} 6. Bg2 {[%emt 0:02:01]} O-O {[%emt 0:00:18]} 7. Qc2 {[%emt 0:08:34]} c5 {[%emt 0:00:16]} 8. cxd5 {[%emt 0:25:06]} cxd4 {[%emt 0:00:11]} 9. Nxd4 {[%emt 0:01:17]} exd5 {[%emt 0:00:22]} 10. Bxb4 {[%emt 0:05:31]} axb4 {[%emt 0:00:07]} 11. Nd2 {[%emt 0:00:44]} Qb6 {[%emt 0:01:33]} 12. N2b3 {[%emt 0:04:52]} Nc6 {[%emt 0:00:24]} 13. Nxc6 {[%emt 0:08:32]} bxc6 {[%emt 0:01:13]} 14. O-O {[%emt 0:00:39]} Ba6 {[%emt 0:00:41]} 15. Rfc1 {[%emt 0:00:49]} Bc4 {[%emt 0:00:52]} 16. e3 {[%emt 0:11:31]} Nd7 {[%emt 0:17:55]} 17. Nd2 {[%emt 0:05:40]} Bb5 {[%emt 0:01:12]} 18. Nf3 {[%emt 0:03:13]} Rfe8 {[%emt 0:14:43]} 19. Qd2 {[%emt 0:05:29]} Ba6 {[%emt 0:08:30]} 20. Qd4 {[%emt 0:01:35]} Rab8 {[%emt 0:00:38]} 21. Qxb6 {[%emt 0:05:35]} Rxb6 {[%emt 0:00:13]} 22. Bh3 {[%emt 0:00:27]} Nf6 {[%emt 0:01:12]} 23. Nd4 {[%emt 0:00:53]} Bc8 {[%emt 0:00:47]} 24. Bg2 {[%emt 0:03:41]} Bd7 {[%emt 0:01:06]} 25. a4 {[%emt 0:02:52]} bxa3 {[%emt 0:00:08]} 26. bxa3 {[%emt 0:00:12]} Ra8 {[%emt 0:00:45]} 27. h3 {[%emt 0:02:53]} Kf8 {[%emt 0:00:55]} 28. g4 {[%emt 0:00:28]} h6 {[%emt 0:00:06]} 29. Rc3 {[%emt 0:01:03]} Ke7 {[%emt 0:00:22]} 30. Nb3 {[%emt 0:00:36]} Kd6 {[%emt 0:00:39]} 31. Nc5 {[%emt 0:00:21]} Ra5 {[%emt 0:02:36]} 32. Rac1 {[%emt 0:00:37]} Be6 {[%emt 0:02:38]} 33. f4 {[%emt 0:00:27]} Nd7 {[%emt 0:00:48]} 34. Nd3 {[%emt 0:00:36]} f5 {[%emt 0:01:00]} 35. gxf5 {[%emt 0:00:27]} Bxf5 {[%emt 0:00:08]} 36. Nb4 {[%emt 0:00:33]} Rc5 {[%emt 0:00:27]} 37. Kf2 {[%emt 0:00:30]} Rxc3 {[%emt 0:00:30]} 38. Rxc3 {[%emt 0:00:02]} Nf6 {[%emt 0:00:13]} 39. Ke2 {[%emt 0:00:57]} c5 {[%emt 0:09:59]} 40. Nd3 {[%emt 0:00:30]} Be4 {[%emt 0:00:10]} 41. Bf3 {[%emt 0:09:10]} Rb1 {[%emt 0:03:15]} 42. Kf2 {[%emt 0:13:38]} c4 {[%emt 0:04:56]} 43. Ne5 {[%emt 0:02:38]} Rb2+ {[%emt 0:01:26]} 44. Kg3 {[%emt 0:00:40]} Rb3 {[%emt 0:00:17]} 0-1

[Event "AUT Bundesliga 2024-25"]
[Site "Austria"]
[Date "2025.04.04"]
[Round "9.17"]
[White "Froewis, Georg"]
[Black "Maiwald, Jens-Uwe"]
[Result "1-0"]
[Annotator "RC"]
[ECO "A17"]
[WhiteElo "2429"]
[BlackElo "2423"]
[PlyCount "55"]
[EventDate "2024.08.28"]
[EventType "team-tourn"]
[EventCountry "AUT"]
[SourceTitle "playchess.com"]
[Source "ChessBase"]
[SourceQuality "1"]
[TimeControl "40/5400+30:1800+30"]

1. Nf3 {[%emt 0:00:04]} Nf6 {[%emt 0:00:15]} 2. c4 {[%emt 0:00:04]} e6 {[%emt 0:00:25]} 3. Nc3 {[%emt 0:00:09]} Bb4 {[%emt 0:00:46]} 4. g4 {[%emt 0:00:37]} h6 {[%emt 0:02:34]} 5. Rg1 {[%emt 0:00:14]} Nc6 {[%emt 0:05:53]} 6. h4 {[%emt 0:01:02]} d5 {[%emt 0:01:55]} 7. g5 {[%emt 0:00:51]} hxg5 {[%emt 0:00:58]} 8. hxg5 {[%emt 0:00:05]} Ne4 {[%emt 0:17:28]} 9. Qc2 {[%emt 0:00:08]} Nd6 {[%emt 0:03:46]} 10. a3 {[%emt 0:07:29]} Bxc3 {[%emt 0:01:44]} 11. Qxc3 {[%emt 0:00:05]} Nf5 {[%emt 0:03:39]} 12. b4 {[%emt 0:02:12]} d4 {[%emt 0:01:40]} 13. Qd3 {[%emt 0:03:04]} a5 {[%emt 0:10:24]} 14. b5 {[%emt 0:01:07]} Nce7 {[%emt 0:00:06]} 15. e4 {[%emt 0:01:25]} Nh4 {[%emt 0:00:42]} 16. Rh1 {[%emt 0:04:31]} Nxf3+ {[%emt 0:07:21]} 17. Qxf3 {[%emt 0:00:04]} Rxh1 {[%emt 0:00:56]} 18. Qxh1 {[%emt 0:00:05]} Ng6 {[%emt 0:00:10]} 19. d3 {[%emt 0:02:46]} Qd6 {[%emt 0:19:07]} 20. f4 {[%emt 0:05:33]} Nxf4 {[%emt 0:03:43]} 21. Qh8+ {[%emt 0:00:12]} Ke7 {[%emt 0:00:29]} 22. Ra2 {[%emt 0:02:21]} e5 {[%emt 0:02:41]} 23. Qxg7 {[%emt 0:18:02]} Nh5 {[%emt 0:07:29]} 24. Qh8 {[%emt 0:01:36]} Nf4 {[%emt 0:02:41]} 25. Rh2 {[%emt 0:03:11]} Ng6 {[%emt 0:01:31]} 26. Qg7 {[%emt 0:00:13]} Bg4 {[%emt 0:00:49]} 27. Rf2 {[%emt 0:03:01]} Be6 {[%emt 0:02:15]} 28. Rf6 {[%emt 0:01:42]} 1-0